Workbook

Sheet Expenses
A1: Expense Tracking
O2: © 2009-2019 Vertex42 LLC
C3: Budget | E3: 18,750 | F3: 13,125 | G3: 2,500 | H3: 2,500 | I3: 2,500 | J3: 2,500 | K3: 500 | M3: =SUM(D3:L3) -> 42,375 | O3: =HYPERLINK("https://www.vertex42.com/ExcelTemplates/expense-tracker.html","Expense Tracking Template") -> Expense Tracking Template
C4: % Spent | D4: =IF(D3=0,"-",D39/D3) -> - | E4: =IF(E3=0,"-",E39/E3) -> 0.0% | F4: =IF(F3=0,"-",F39/F3) -> 1.2% | G4: =IF(G3=0,"-",G39/G3) -> 93.8% | H4: =IF(H3=0,"-",H39/H3) -> 0.2% | I4: =IF(I3=0,"-",I39/I3) -> 0.0% | J4: =IF(J3=0,"-",J39/J3) -> 0.0% | K4: =IF(K3=0,"-",K39/K3) -> 17.4% | L4: =IF(L3=0,"-",L39/L3) -> - | M4: =IF(M3=0,"-",M39/M3) -> 6.1%
C5: Remaining | E5: =E3-E39 -> 18,750 | F5: =F3-F39 -> 12,970 | G5: =G3-G39 -> 156 | H5: =H3-H39 -> 2,495 | I5: =I3-I39 -> 2,500 | J5: =J3-J39 -> 2,500 | K5: =K3-K39 -> 413 | L5: =L3-L39 -> 0 | M5: =M3-M39 -> 39,784
M6: [42]
A7: Date | B7: Payment Type | C7: Description | E7: Category 1 | F7: Category 2 | G7: Category 3 | H7: Category 4 | I7: Category 5 | J7: Category 6 | K7: Other | M7: Subtotal | O7: ← You can update category labels in this row
A8: 2019-01-01 | B8: CrCard | C8: XYZ Supply Store | G8: 2,344.00 | K8: 87.23 | M8: =SUM(D8:L8) -> 2,431.23
A9: 2019-01-10 | B9: 2032 | C9: ABC Services, Inc. | F9: 155.00 | H9: 5.00 | M9: 160.00 | O9: Additional Templates
M10: 0 | O10: ► More Budget Templates
M11: 0 | O11: ► Money Manager
M12: 0 | O12: ► Financial Calculators
M13: 0
M14: 0
M15: 0 | O15: Add Another Category
M16: 0 | O16: 1. Insert a new column before the Other column
M17: 0 | O17: 2. Copy/Paste formulas in the header and total rows
M18: 0 | O18: 3. Update the new category label
M19: 0
M20: 0
M21: 0
M22: 0
M23: 0
M24: 0
M25: 0
M26: 0
M27: 0
M28: 0
M29: 0
M30: 0
M31: 0
M32: 0
M33: 0
M34: 0
M35: 0
M36: 0
M37: 0 | O37: ← Insert new rows ABOVE this one
M38: 0
C39: Expense Total | D39: =SUM(D8:D38) -> 0 | E39: =SUM(E7:E38) -> 0 | F39: =SUM(F7:F38) -> 155.00 | G39: =SUM(G7:G38) -> 2,344.00 | H39: =SUM(H7:H38) -> 5.00 | I39: =SUM(I7:I38) -> 0 | J39: =SUM(J7:J38) -> 0 | K39: =SUM(K7:K38) -> 87.23 | L39: =SUM(L8:L38) -> 0 | M39: 2,591.23

Sheet ©
B1: Expense Tracking Template
B3: By Vertex42.com
B4: https://www.vertex42.com/ExcelTemplates/expense-tracker.html
B6: © 2009-2019 Vertex42 LLC
B8: This spreadsheet, including all worksheets and associated content is a copyrighted work under the United States and other copyright laws.
B10: Do not submit copies or modifications of this template to any website or online template gallery.
B12: Please review the following license agreement to learn how you may or may not use this template. Thank you.
B14: License Agreement
B15: https://www.vertex42.com/licensing/EULA_privateuse.html
B17: Do not delete this worksheet
